bitfinex-derivatives/quotes_BNBF0:USTF0_20251002
["timestamp","ask_amount","ask_price","bid_price","bid_amount"]
[1759433179405,0.52241485,1070.8,1069.3,1.90883008]
[1759433179610,0.52241485,1070.7,1069.3,1.90883008]
[1759433179805,0.52241485,1070.6,1069.3,1.90883008]
[1759433180011,0.83891724,1071.4,1069.3,1.90883008]
[1759433180215,0.52252088,1071.3,1069.3,1.90883008]
[1759433180505,0.52252088,1071.2,1069.3,1.90883008]
[1759433180706,0.52252088,1071.1,1069.3,1.90883008]
[1759433180907,0.52252088,1071.0,1069.3,1.90883008]
[1759433181111,0.52252088,1070.9,1069.3,1.90883008]
[1759433181410,0.52252088,1070.8,1069.3,1.90883008]
[1759433181610,0.52252088,1070.7,1069.3,1.90883008]
[1759433181807,0.52252088,1070.6,1069.3,1.90883008]
[1759433182007,0.83891724,1071.4,1069.3,1.90883008]
[1759433182207,0.52270606,1071.3,1069.3,1.90883008]
[1759433182407,0.52270606,1071.2,1069.3,1.90883008]
[1759433182611,0.52270606,1071.1,1069.3,1.90883008]
[1759433182908,0.52270606,1071.0,1069.3,1.90883008]
[1759433183109,0.52270606,1070.9,1069.3,1.90883008]
[1759433183411,0.52270606,1070.8,1069.3,1.90883008]
[1759433183607,0.52270606,1070.7,1069.3,1.90883008]
[1759433183812,0.52270606,1070.6,1069.3,1.90883008]
[1759433184006,0.83891724,1071.4,1069.3,1.90883008]
[1759433184007,0.52270606,1070.5,1069.3,1.90883008]
[1759433184209,0.83891724,1071.4,1069.3,1.90883008]
[1759433184412,0.52312877,1071.3,1069.3,1.90883008]
[1759433184610,0.52312877,1071.2,1069.3,1.90883008]
[1759433184808,0.52312877,1071.1,1069.3,1.90883008]
[1759433185010,0.52312877,1071.0,1069.3,1.90883008]
[1759433185213,0.52312877,1070.9,1069.3,1.90883008]
[1759433185409,0.52312877,1070.8,1069.3,1.90883008]
[1759433185609,0.52312877,1070.7,1069.3,1.90883008]
[1759433185812,0.52312877,1070.6,1069.3,1.90883008]
[1759433186012,0.52312877,1070.5,1069.3,1.90883008]
[1759433186215,0.83891724,1071.4,1069.3,1.90883008]
[1759433186415,0.52351146,1071.3,1069.3,1.90883008]
[1759433186611,0.52351146,1071.2,1069.3,1.90883008]
[1759433186814,0.52351146,1071.1,1069.3,1.90883008]
[1759433187014,0.52351146,1071.0,1069.3,1.90883008]
[1759433187212,0.52351146,1070.9,1069.3,1.90883008]
[1759433187416,0.52351146,1070.8,1069.3,1.90883008]
[1759433187616,0.52351146,1070.7,1069.3,1.90883008]
[1759433187814,0.52351146,1070.6,1069.3,1.90883008]
[1759433188014,0.52351146,1070.5,1069.3,1.90883008]
[1759433188218,0.83891724,1071.2,1069.3,1.90883008]
[1759433188415,0.52434478,1071.1,1069.3,1.90883008]
[1759433188712,0.52434478,1071.0,1069.3,1.90883008]
[1759433188916,0.52434478,1070.9,1069.3,1.90883008]
[1759433189118,0.52434478,1070.8,1069.3,1.90883008]
[1759433189316,0.52434478,1070.7,1069.3,1.90883008]
[1759433189519,0.52434478,1070.6,1069.3,1.90883008]
[1759433189720,0.52434478,1070.5,1069.3,1.90883008]
[1759433189920,0.52434478,1070.4,1069.3,1.90883008]
[1759433190117,0.83891724,1071.1,1069.3,1.90883008]
[1759433190320,0.52457476,1071.0,1069.3,1.90883008]
[1759433190520,0.52457476,1070.9,1069.3,1.90883008]
[1759433190720,0.52457476,1070.8,1069.3,1.90883008]
[1759433190920,0.52457476,1070.7,1069.3,1.90883008]
[1759433191120,0.52457476,1070.6,1069.3,1.90883008]
[1759433191321,0.52457476,1070.5,1069.3,1.90883008]
[1759433191516,0.52457476,1070.4,1069.3,1.90883008]
[1759433191721,0.52457476,1070.3,1069.3,1.90883008]
[1759433192021,0.83891724,1071.0,1069.3,1.90883008]
[1759433192220,0.52502579,1070.9,1069.3,1.90883008]
[1759433192520,0.52502579,1070.8,1069.3,1.90883008]
[1759433192718,0.52502579,1070.7,1069.3,1.90883008]
[1759433192927,0.52502579,1070.6,1069.3,1.90883008]
[1759433193119,0.52502579,1070.5,1069.3,1.90883008]
[1759433193324,0.52502579,1070.4,1069.3,1.90883008]
[1759433193620,0.52502579,1070.3,1069.3,1.90883008]
[1759433193819,0.83891724,1071.0,1069.3,1.90883008]
[1759433194024,0.52549124,1070.9,1069.3,1.90883008]
[1759433194223,0.83891724,1071.0,1069.3,1.90883008]
[1759433194224,0.52549124,1070.8,1069.3,1.90883008]
[1759433194420,0.52549124,1070.7,1069.3,1.90883008]
[1759433194621,0.52549124,1070.6,1069.3,1.90883008]
[1759433194821,0.52549124,1070.5,1069.3,1.90883008]
[1759433195028,0.52549124,1070.4,1069.3,1.90883008]
[1759433195226,0.52549124,1070.3,1069.3,1.90883008]
[1759433195424,0.83891724,1071.0,1069.3,1.90883008]
[1759433195724,0.52584227,1070.9,1069.3,1.90883008]
[1759433195926,0.52584227,1070.8,1069.3,1.90883008]
[1759433196129,0.52584227,1070.7,1069.3,1.90883008]
[1759433196329,0.52584227,1070.6,1069.3,1.90883008]
[1759433196529,0.52584227,1070.5,1069.3,1.90883008]
[1759433196728,0.83891724,1071.0,1069.3,1.90883008]
[1759433196729,0.52584227,1070.4,1069.3,1.90883008]
[1759433196925,0.52584227,1070.3,1069.3,1.90883008]
[1759433197224,0.52584227,1070.2,1069.3,1.90883008]
[1759433197428,0.83891724,1071.0,1069.3,1.90883008]
[1759433197626,0.52603967,1070.9,1069.3,1.90883008]
[1759433197827,0.52603967,1070.8,1069.3,1.90883008]
[1759433198027,0.52603967,1070.7,1069.3,1.90883008]
[1759433198327,0.52603967,1070.6,1069.3,1.90883008]
[1759433198528,0.52603967,1070.5,1069.3,1.90883008]
[1759433198730,0.52603967,1070.4,1069.3,1.90883008]
[1759433198933,0.52603967,1070.3,1069.3,1.90883008]
[1759433199130,0.52603967,1070.2,1069.3,1.90883008]
[1759433199432,0.83891724,1071.0,1069.3,1.90883008]
[1759433199630,0.52609536,1070.9,1069.3,1.90883008]
[1759433199831,0.52609536,1070.8,1069.3,1.90883008]
[1759433200030,0.52609536,1070.7,1069.3,1.90883008]
[1759433200233,0.52609536,1070.6,1069.3,1.90883008]
[1759433200433,0.52609536,1070.5,1069.3,1.90883008]
[1759433200634,0.52609536,1070.4,1069.3,1.90883008]
[1759433200934,0.52609536,1070.3,1069.3,1.90883008]
[1759433201134,0.83891724,1071.0,1069.1,0.16254049]
[1759433201135,0.52609536,1070.2,1069.4,1.88141226]
[1759433201430,0.83891724,1071.0,1069.4,1.88141226]
[1759433201635,0.52607578,1070.9,1069.4,1.88141226]
[1759433201833,0.52607578,1070.8,1069.4,1.88141226]
[1759433202033,0.52607578,1070.7,1069.4,1.88141226]
[1759433202234,0.52607578,1070.6,1069.4,1.88141226]
[1759433202431,0.52607578,1070.5,1069.4,1.88141226]
[1759433202631,0.52607578,1070.4,1069.4,1.88141226]
[1759433202932,0.52607578,1070.3,1069.4,1.88141226]
[1759433203136,0.52607578,1070.2,1069.4,1.88141226]
[1759433203335,0.83891724,1071.1,1069.4,1.88141226]
[1759433203531,0.52603093,1071.0,1069.4,1.88141226]
[1759433203732,0.52603093,1070.9,1069.4,1.88141226]
[1759433204035,0.52603093,1070.8,1069.4,1.88141226]
[1759433204230,0.52603093,1070.7,1069.4,1.88141226]
[1759433204434,0.83891724,1071.5,1069.4,1.88141226]
[1759433204735,0.52576464,1071.4,1069.4,1.88141226]
[1759433204935,0.52576464,1071.3,1069.4,1.88141226]
[1759433205134,0.52576464,1071.2,1069.4,1.88141226]
[1759433205336,0.52576464,1071.1,1069.4,1.88141226]
[1759433205533,0.52576464,1071.0,1069.4,1.88141226]
[1759433205738,0.52576464,1070.9,1069.4,1.88141226]
[1759433206034,0.52576464,1070.8,1069.4,1.88141226]
[1759433206233,0.52576464,1070.7,1069.4,1.88141226]
[1759433206434,0.83891724,1071.5,1069.4,1.88141226]
[1759433206638,0.52556249,1071.4,1069.4,1.88141226]
[1759433206838,0.52556249,1071.3,1069.4,1.88141226]
[1759433207038,0.52556249,1071.2,1069.4,1.88141226]
[1759433207236,0.52556249,1071.1,1069.4,1.88141226]
[1759433207440,0.52556249,1071.0,1069.4,1.88141226]
[1759433207739,0.52556249,1070.9,1069.4,1.88141226]
[1759433207936,0.52556249,1070.8,1069.4,1.88141226]
[1759433208136,0.52556249,1070.7,1069.4,1.88141226]
[1759433208339,0.83891724,1071.5,1069.4,1.88141226]
[1759433208534,0.5254042,1071.4,1069.4,1.88141226]
[1759433208738,0.5254042,1071.3,1069.4,1.88141226]
[1759433209035,0.5254042,1071.2,1069.4,1.88141226]
[1759433209237,0.5254042,1071.1,1069.4,1.88141226]
[1759433209540,0.5254042,1071.0,1069.4,3.12099258]
[1759433209739,0.5254042,1070.9,1069.4,3.12099258]
[1759433209934,0.83891724,1071.2,1069.5,1.23958032]
[1759433209935,0.5254042,1070.8,1069.5,1.23958032]
[1759433210142,0.5254042,1070.7,1069.4,3.12099258]
[1759433210339,0.5254042,1070.6,1069.4,3.12099258]
[1759433210540,0.83891724,1071.2,1069.4,3.12099258]
[1759433210742,0.52538171,1071.1,1069.4,3.12099258]
[1759433210937,0.52538171,1071.0,1069.4,3.12099258]
[1759433211241,0.52538171,1070.9,1069.4,3.12099258]
[1759433211438,0.52538171,1070.8,1069.4,3.12099258]
[1759433211643,0.52538171,1070.7,1069.4,3.12099258]
[1759433211840,0.52538171,1070.6,1069.4,3.12099258]
[1759433212144,0.83891724,1071.2,1069.4,3.12099258]
[1759433212345,0.52535756,1071.1,1069.4,3.12099258]
[1759433212544,0.52535756,1071.0,1069.4,3.12099258]
[1759433212745,0.52535756,1070.9,1069.4,3.12099258]
[1759433212945,0.52535756,1070.8,1069.4,3.12099258]
[1759433213245,0.52535756,1070.7,1069.4,3.12099258]
[1759433213442,0.52535756,1070.6,1069.4,1.88141226]
[1759433213644,0.83891724,1071.2,1069.4,1.88141226]
[1759433213846,0.52535513,1071.1,1069.4,1.88141226]
[1759433214046,0.52535513,1071.0,1069.4,1.88141226]
[1759433214246,0.52535513,1070.9,1069.4,1.88141226]
[1759433214443,0.52535513,1070.8,1069.4,1.88141226]
[1759433214740,0.52535513,1070.7,1069.4,1.88141226]
[1759433214944,0.52535513,1070.6,1069.4,1.88141226]
[1759433215148,0.83891724,1071.2,1069.4,1.88141226]
[1759433215345,0.52535433,1071.1,1069.4,1.88141226]
[1759433215644,0.52535433,1071.0,1069.4,1.88141226]
[1759433215944,0.52535433,1070.9,1069.4,1.88141226]
[1759433216143,0.52535433,1070.8,1069.4,1.88141226]
[1759433216347,0.52535433,1070.7,1069.4,1.88141226]
[1759433216546,0.52535433,1070.6,1069.4,1.88141226]
[1759433216746,0.52535433,1070.5,1069.4,1.88141226]
[1759433216949,0.83891724,1071.3,1069.4,1.88141226]
[1759433217149,0.52541428,1071.2,1069.4,1.88141226]
[1759433217349,0.52541428,1071.1,1069.4,1.88141226]
[1759433217549,0.52541428,1071.0,1069.4,1.88141226]
[1759433217749,0.52541428,1070.9,1069.4,1.88141226]
[1759433217950,0.52541428,1070.8,1069.4,1.88141226]
[1759433218145,0.52541428,1070.7,1069.4,1.88141226]
[1759433218347,0.52541428,1070.6,1069.4,1.88141226]
[1759433218544,0.83891724,1071.2,1069.4,1.88141226]
[1759433218545,0.52541428,1070.5,1069.4,1.88141226]
[1759433218745,0.52541428,1070.4,1069.4,1.88141226]
[1759433218948,0.83891724,1071.2,1069.4,1.88141226]
[1759433219151,0.52758183,1071.1,1069.4,1.88141226]
[1759433219351,0.52758183,1071.0,1069.4,1.88141226]
[1759433219651,0.52758183,1070.9,1069.4,1.88141226]
[1759433219851,0.52758183,1070.8,1069.4,1.88141226]
[1759433220047,1.2571997,1071.5,1069.4,1.88141226]
[1759433220048,0.52758183,1070.7,1069.4,1.88141226]
[1759433220246,0.52758183,1070.6,1069.4,1.88141226]
[1759433220450,0.52758183,1070.5,1069.4,1.88141226]
[1759433220650,0.83891724,1071.3,1069.4,1.88141226]
[1759433220848,0.52752943,1071.2,1069.4,1.88141226]
[1759433221150,0.52752943,1071.1,1069.4,1.88141226]
[1759433221348,0.52752943,1071.0,1069.4,1.88141226]
[1759433221549,0.52752943,1070.9,1069.4,1.88141226]
[1759433221747,0.52752943,1070.8,1069.4,1.88141226]
[1759433222051,0.52752943,1070.7,1069.4,1.88141226]
[1759433222249,0.52752943,1070.6,1069.4,1.88141226]
[1759433222448,0.52752943,1070.5,1069.4,1.88141226]
[1759433222661,0.83891724,1071.3,1069.4,1.88141226]
[1759433222847,0.52755217,1071.2,1069.4,1.88141226]
[1759433223051,0.52755217,1071.1,1069.4,1.88141226]
[1759433223249,0.52755217,1071.0,1069.4,1.88141226]
[1759433223450,0.52755217,1070.9,1069.4,1.88141226]
[1759433223652,0.52755217,1070.8,1069.4,1.88141226]
[1759433223850,0.52755217,1070.7,1069.4,1.88141226]
[1759433224050,0.52755217,1070.6,1069.4,1.88141226]
[1759433224252,0.52755217,1070.5,1069.4,1.88141226]
[1759433224552,0.83891724,1071.3,1069.4,1.88141226]
[1759433224849,1.36649907,1071.2,1069.4,1.88141226]
[1759433225054,0.52758183,1071.1,1069.4,1.88141226]
[1759433225250,0.52758183,1071.0,1069.4,1.88141226]
[1759433225549,0.52758183,1070.9,1069.4,1.88141226]
[1759433225849,0.83891724,1071.2,1069.4,1.88141226]
[1759433225850,0.52758183,1070.8,1069.4,1.88141226]
[1759433226050,0.52758183,1070.7,1069.4,1.88141226]
[1759433226350,0.52758183,1070.6,1069.4,1.88141226]
[1759433226554,0.52758183,1070.5,1069.4,1.88141226]
[1759433226748,0.83891724,1071.2,1069.4,1.88141226]
[1759433226954,0.52761729,1071.1,1069.4,1.88141226]
[1759433227151,0.52761729,1071.0,1069.4,1.88141226]
[1759433227350,0.52761729,1070.9,1069.4,1.88141226]
[1759433227553,0.52761729,1070.8,1069.4,1.88141226]
[1759433227753,0.52761729,1070.7,1069.4,1.88141226]
[1759433227953,0.52761729,1070.6,1069.4,1.88141226]
[1759433228155,0.52761729,1070.5,1069.4,1.88141226]
[1759433228454,0.83891724,1071.2,1069.4,1.88141226]
[1759433228753,0.52766338,1071.1,1069.4,1.88141226]
[1759433229052,0.52766338,1071.0,1069.4,1.88141226]
[1759433229252,0.52766338,1070.9,1069.4,1.88141226]
[1759433229450,0.52766338,1070.8,1069.4,1.88141226]
[1759433229656,0.83891724,1071.2,1069.4,1.88141226]
[1759433229657,0.52766338,1070.7,1069.4,1.88141226]
[1759433229850,0.52766338,1070.6,1069.4,1.88141226]
[1759433230052,0.52766338,1070.5,1069.4,1.88141226]
[1759433230252,0.83891724,1071.1,1069.4,1.88141226]
[1759433230453,0.52768745,1071.0,1069.4,1.88141226]
[1759433230656,0.52768745,1070.9,1069.4,1.88141226]
[1759433230956,0.52768745,1070.8,1069.4,1.88141226]
[1759433231153,0.52768745,1070.7,1069.4,1.88141226]
[1759433231457,0.52768745,1070.6,1069.4,1.88141226]
[1759433231657,0.52768745,1070.5,1069.4,1.88141226]
[1759433231957,0.83891724,1071.1,1069.4,1.88141226]
[1759433232254,0.52772897,1071.0,1069.4,1.88141226]
[1759433232455,0.52772897,1070.9,1069.4,1.88141226]
[1759433232653,0.52772897,1070.8,1069.4,1.88141226]
[1759433232857,0.83891724,1071.1,1069.4,1.88141226]
[1759433232858,0.52772897,1070.7,1069.4,1.88141226]
[1759433233058,0.52772897,1070.6,1069.4,1.88141226]
[1759433233358,0.52772897,1070.5,1069.4,1.88141226]
[1759433233559,0.83891724,1071.1,1069.4,1.88141226]
[1759433233855,0.52781086,1071.0,1069.4,1.88141226]
[1759433234155,0.52781086,1070.9,1069.4,3.12099258]
[1759433234353,0.52781086,1070.8,1069.4,3.12099258]
[1759433234553,0.52781086,1070.7,1069.4,3.12099258]
[1759433234753,0.52781086,1070.6,1069.4,3.12099258]
[1759433234957,0.83891724,1071.2,1069.4,3.12099258]
[1759433235156,0.5278094,1071.1,1069.4,3.12099258]
[1759433235353,0.5278094,1071.0,1069.4,3.12099258]
[1759433235557,0.5278094,1070.9,1069.4,3.12099258]
[1759433235754,0.5278094,1070.8,1069.4,3.12099258]
[1759433236054,0.5278094,1070.7,1069.4,3.12099258]
[1759433236252,0.5278094,1070.6,1069.4,3.12099258]
[1759433236454,0.83891724,1071.2,1069.4,3.12099258]
[1759433236654,0.52781379,1071.1,1069.4,3.12099258]
[1759433236955,0.52781379,1071.0,1069.4,3.12099258]
[1759433237153,0.52781379,1070.9,1069.4,3.12099258]
[1759433237353,0.52781379,1070.8,1069.4,3.12099258]
[1759433237555,0.52781379,1070.7,1069.4,1.88141226]
[1759433237755,0.52781379,1070.6,1069.4,1.88141226]
[1759433237955,0.52781379,1070.5,1069.4,1.88141226]
[1759433238156,0.83891724,1071.2,1069.4,1.88141226]
[1759433238355,0.52788074,1071.1,1069.4,1.88141226]
[1759433238558,0.52788074,1071.0,1069.4,1.88141226]
[1759433238755,0.52788074,1070.9,1069.4,1.88141226]
[1759433238952,0.83891724,1071.2,1069.4,1.88141226]
[1759433238953,0.52788074,1070.8,1069.4,1.88141226]
[1759433239159,0.52788074,1070.7,1069.4,1.88141226]
[1759433239356,0.52788074,1070.6,1069.4,1.88141226]
[1759433239555,0.52788074,1070.5,1069.4,1.88141226]
[1759433239760,0.52788074,1070.4,1069.4,1.88141226]
[1759433239958,0.83891724,1071.1,1069.4,1.88141226]
[1759433240161,0.52790314,1071.0,1069.4,1.88141226]
[1759433240362,0.52790314,1070.9,1069.4,1.88141226]
[1759433240556,0.52790314,1070.8,1069.4,1.88141226]
[1759433240760,0.52790314,1070.7,1069.4,1.88141226]
[1759433241062,0.52790314,1070.6,1069.4,1.88141226]
[1759433241258,0.52790314,1070.5,1069.4,1.88141226]
[1759433241462,0.83891724,1071.0,1069.4,1.88141226]
[1759433241663,0.52788392,1070.9,1069.4,3.12099258]
[1759433241962,0.52788392,1070.8,1069.4,3.12099258]
[1759433242159,0.52788392,1070.7,1069.4,3.12099258]
[1759433242361,0.83891724,1071.1,1069.4,3.12099258]
[1759433242362,0.52788392,1070.6,1069.4,3.12099258]
[1759433242558,0.83891724,1071.2,1069.4,3.12099258]
[1759433242760,0.5278101,1071.1,1069.4,3.12099258]
[1759433242959,0.5278101,1071.0,1069.4,3.12099258]
[1759433243163,0.5278101,1070.9,1069.4,3.12099258]
[1759433243361,0.5278101,1070.8,1069.4,1.88141226]
[1759433243560,0.5278101,1070.7,1069.4,1.88141226]
[1759433243763,0.83891724,1071.7,1069.4,1.88141226]
[1759433244061,0.5277256,1071.6,1069.4,1.88141226]
[1759433244266,0.5277256,1071.5,1069.4,1.88141226]
[1759433244462,0.5277256,1071.4,1069.4,1.88141226]
[1759433244660,0.5277256,1071.3,1069.4,1.88141226]
[1759433244859,0.5277256,1071.2,1069.4,1.88141226]
[1759433245058,0.5277256,1071.1,1069.4,1.88141226]
[1759433245263,0.5277256,1071.0,1069.4,1.88141226]
[1759433245462,0.5277256,1070.9,1069.4,1.88141226]
[1759433245660,0.5277256,1070.8,1069.4,1.88141226]
[1759433245860,0.83891724,1071.7,1069.4,1.88141226]
[1759433246061,0.52756211,1071.6,1069.4,1.88141226]
[1759433246264,0.52756211,1071.5,1069.4,1.88141226]
[1759433246465,0.52756211,1071.4,1069.4,1.88141226]
[1759433246661,0.52756211,1071.3,1069.4,1.88141226]
[1759433246964,0.52756211,1071.2,1069.7,1.23958032]
[1759433247166,0.52756211,1071.1,1069.8,1.23958032]
[1759433247364,0.52756211,1071.0,1069.9,1.23958032]
[1759433247662,0.83891724,1071.6,1069.8,1.23958032]
[1759433247864,0.52724351,1071.5,1069.8,1.23958032]
[1759433248061,0.52724351,1071.4,1069.8,1.23958032]
[1759433248362,0.52724351,1071.3,1069.8,1.23958032]
[1759433248660,0.52724351,1071.2,1069.8,1.23958032]
[1759433248863,0.52724351,1071.1,1069.8,1.23958032]
[1759433249061,0.83891724,1071.6,1069.8,1.23958032]
[1759433249365,0.52694329,1071.5,1069.8,1.23958032]
[1759433249560,0.52694329,1071.4,1069.8,1.23958032]
[1759433249860,0.52694329,1071.3,1069.5,1.23958032]
[1759433250064,0.52694329,1071.2,1069.5,1.23958032]
[1759433250261,0.52694329,1071.1,1069.5,1.23958032]
[1759433250465,0.83891724,1071.8,1069.5,1.23958032]
[1759433250665,0.52671346,1071.7,1069.5,1.23958032]
[1759433250966,0.52671346,1071.6,1069.5,1.23958032]
[1759433251164,0.52671346,1071.5,1069.5,1.23958032]
[1759433251460,0.52671346,1071.4,1069.5,1.23958032]
[1759433251663,0.52671346,1071.3,1069.5,1.23958032]
[1759433251863,0.52671346,1071.2,1069.5,1.23958032]
[1759433252063,0.52671346,1071.1,1069.5,1.23958032]
[1759433252363,0.83891724,1071.8,1069.5,1.23958032]
[1759433252563,0.52653375,1071.7,1069.5,1.23958032]
[1759433252763,0.52653375,1071.6,1069.5,1.23958032]
[1759433252963,0.52653375,1071.5,1069.5,1.23958032]
[1759433253160,0.52653375,1071.4,1069.5,1.23958032]
[1759433253365,0.52653375,1071.3,1069.5,1.23958032]
[1759433253560,0.52653375,1071.2,1069.5,1.23958032]
[1759433253861,0.52653375,1071.1,1069.5,1.23958032]
[1759433254065,0.83891724,1071.8,1069.5,1.23958032]
[1759433254264,0.52646806,1071.7,1069.5,1.23958032]
[1759433254565,0.52646806,1071.6,1069.5,1.23958032]
[1759433254760,0.52646806,1071.5,1069.5,1.23958032]
[1759433254965,0.52646806,1071.4,1069.5,1.23958032]
[1759433255164,0.52646806,1071.3,1069.5,1.23958032]
[1759433255362,0.52646806,1071.2,1069.5,1.23958032]
[1759433255566,0.52646806,1071.1,1069.5,1.23958032]
[1759433255767,0.83891724,1071.9,1069.4,3.12099258]
[1759433255965,0.52635782,1071.8,1069.5,1.23958032]
[1759433256163,0.52635782,1071.7,1069.5,1.23958032]
[1759433256368,0.52635782,1071.6,1069.6,1.23958032]
[1759433256563,0.52635782,1071.5,1069.6,1.23958032]
[1759433256868,0.52635782,1071.4,1069.8,1.23958032]
[1759433257063,0.52635782,1071.3,1069.6,1.23958032]
[1759433257367,0.52635782,1071.2,1069.6,1.23958032]
[1759433257564,0.83891724,1072.0,1069.6,1.23958032]
[1759433257763,0.52616802,1071.9,1069.5,1.23958032]
[1759433258063,0.52616802,1071.8,1069.5,1.23958032]
[1759433258268,0.52616802,1071.7,1069.5,1.23958032]
[1759433258466,0.52616802,1071.6,1069.5,1.23958032]
[1759433258668,0.52616802,1071.5,1069.5,1.23958032]
[1759433258869,0.52616802,1071.4,1069.5,1.23958032]
[1759433259066,0.52616802,1071.3,1069.5,1.23958032]
[1759433259264,0.52616802,1071.2,1069.5,1.23958032]
[1759433259468,0.83891724,1072.0,1069.5,1.23958032]
[1759433259766,0.52604247,1071.9,1069.5,1.23958032]
[1759433260066,0.52604247,1071.8,1069.5,1.23958032]
[1759433260269,0.52604247,1071.7,1069.5,1.23958032]
[1759433260567,0.52604247,1071.6,1069.8,1.23958032]
[1759433260772,0.52604247,1071.5,1069.9,1.23958032]
[1759433261065,0.83891724,1072.2,1069.9,1.23958032]
[1759433261370,0.52587684,1072.1,1069.8,1.23958032]
[1759433261667,0.52587684,1072.0,1069.8,1.23958032]
[1759433261865,0.52587684,1071.9,1069.9,1.23958032]
[1759433262066,0.52587684,1071.8,1069.9,1.23958032]
[1759433262270,0.52587684,1071.7,1069.8,1.23958032]
[1759433262466,0.52587684,1071.6,1069.8,1.23958032]
[1759433262670,0.52587684,1071.5,1069.8,1.23958032]
[1759433262967,0.83891724,1072.2,1069.8,1.23958032]
[1759433263170,0.83891724,1072.0,1070.0,1.23958032]
[1759433263367,0.52550319,1071.9,1070.0,1.23958032]
[1759433263668,0.52550319,1071.8,1070.0,1.23958032]
[1759433263873,0.52550319,1071.7,1070.0,1.23958032]
[1759433264170,0.52550319,1071.6,1070.0,1.23958032]
[1759433264369,0.52550319,1071.5,1069.9,1.23958032]
[1759433264568,0.83891724,1072.1,1069.9,1.23958032]
[1759433264770,0.52515873,1072.0,1069.9,1.23958032]
[1759433265069,0.52515873,1071.9,1069.9,1.23958032]
[1759433265268,0.52515873,1071.8,1069.8,1.23958032]
[1759433265468,0.52515873,1071.7,1069.8,1.23958032]
[1759433265672,0.52515873,1071.6,1069.8,1.23958032]
[1759433265873,0.52515873,1071.5,1069.5,1.23958032]
[1759433266072,0.83891724,1072.3,1069.5,1.23958032]
[1759433266270,0.52499636,1072.2,1069.4,3.12099258]
[1759433266470,0.52499636,1072.1,1069.4,3.12099258]
[1759433266771,0.52499636,1072.0,1069.4,3.12099258]
[1759433266969,0.52499636,1071.9,1069.4,3.12099258]
[1759433267173,0.52499636,1071.8,1069.4,3.12099258]
[1759433267370,0.52499636,1071.7,1069.4,3.12099258]
[1759433267569,0.52499636,1071.6,1069.5,1.23958032]
[1759433267871,0.52499636,1071.5,1069.5,1.23958032]
[1759433268169,0.83891724,1072.3,1069.5,1.23958032]
[1759433268371,0.83891724,1072.0,1069.7,1.23958032]
[1759433268572,0.52457728,1071.9,1069.7,1.23958032]
[1759433268868,0.52457728,1071.8,1069.7,1.23958032]
[1759433269169,0.52457728,1071.7,1069.7,1.23958032]
[1759433269371,0.52457728,1071.6,1069.7,1.23958032]
[1759433269573,0.52457728,1071.5,1069.7,1.23958032]
[1759433269771,0.83891724,1072.0,1069.7,1.23958032]
[1759433269969,0.52447141,1071.9,1069.7,1.23958032]
[1759433270271,0.52447141,1071.8,1069.7,1.23958032]
[1759433270471,0.52447141,1071.7,1069.7,1.23958032]
[1759433270670,0.52447141,1071.6,1069.7,1.23958032]
[1759433270875,0.52447141,1071.5,1069.7,1.23958032]
[1759433271073,0.83891724,1072.0,1069.7,1.23958032]
[1759433271374,0.52437104,1071.9,1069.7,1.23958032]
[1759433271574,0.52437104,1071.8,1069.7,1.23958032]
[1759433271772,0.52437104,1071.7,1069.6,1.23958032]
[1759433272077,0.52437104,1071.6,1069.7,1.23958032]
[1759433272274,0.52437104,1071.5,1069.7,1.23958032]
[1759433272473,0.83891724,1072.1,1069.7,1.23958032]
[1759433272773,0.52419422,1072.0,1069.6,1.23958032]
[1759433272976,0.83891724,1072.1,1069.6,1.23958032]
[1759433272977,0.52419422,1071.9,1069.6,1.23958032]
[1759433273175,0.52419422,1071.8,1069.6,1.23958032]
[1759433273378,0.52419422,1071.7,1069.6,1.23958032]
[1759433273576,0.52419422,1071.6,1069.6,1.23958032]
[1759433273775,0.52419422,1071.5,1069.6,1.23958032]
[1759433273980,0.83891724,1072.4,1069.4,3.12099258]
[1759433274178,0.52408978,1072.3,1069.4,3.12099258]
[1759433274378,0.52408978,1072.2,1069.5,1.23958032]
[1759433274679,0.52408978,1072.1,1069.5,1.23958032]
[1759433274878,0.83891724,1072.4,1069.4,1.88141226]
[1759433274879,0.52408978,1072.0,1069.6,1.23958032]
[1759433275079,0.52408978,1071.9,1069.6,1.23958032]
[1759433275379,0.52408978,1071.8,1069.6,1.23958032]
[1759433275578,0.52408978,1071.7,1069.6,1.23958032]
[1759433275877,0.52408978,1071.6,1069.6,1.23958032]
[1759433276078,0.83891724,1072.4,1069.6,1.23958032]
[1759433276280,0.52385706,1072.3,1069.6,1.23958032]
[1759433276478,0.52385706,1072.2,1069.6,1.23958032]
[1759433276678,0.52385706,1072.1,1069.6,1.23958032]
[1759433276876,0.52385706,1072.0,1069.6,1.23958032]
[1759433277080,0.52385706,1071.9,1069.6,1.23958032]
[1759433277278,0.52385706,1071.8,1069.6,1.23958032]
[1759433277579,0.52385706,1071.7,1069.6,1.23958032]
[1759433277778,0.83891724,1072.3,1069.6,1.23958032]
[1759433277779,0.52385706,1071.6,1069.6,1.23958032]
[1759433277982,0.83891724,1072.3,1069.6,1.23958032]
[1759433278282,0.52349087,1072.2,1069.6,1.23958032]
[1759433278582,0.52349087,1072.1,1069.6,1.23958032]
[1759433278882,0.52349087,1072.0,1069.6,1.23958032]
[1759433279082,0.52349087,1071.9,1069.6,1.23958032]
[1759433279282,0.52349087,1071.8,1069.6,1.23958032]
[1759433279582,0.52349087,1071.7,1069.7,1.23958032]
[1759433279779,0.52349087,1071.6,1069.7,1.23958032]
[1759433280084,0.83891724,1072.2,1069.7,1.23958032]
[1759433280283,0.52349356,1072.1,1069.7,1.23958032]
[1759433280582,0.52349356,1072.0,1069.7,1.23958032]
[1759433280877,0.52349356,1071.9,1069.7,1.23958032]
[1759433281080,0.52349356,1071.8,1069.7,1.23958032]
[1759433281282,0.52349356,1071.7,1069.7,1.23958032]
[1759433281580,0.52349356,1071.6,1069.6,1.23958032]
[1759433281779,0.83891724,1072.3,1069.6,1.23958032]
[1759433281979,0.52347879,1072.2,1069.5,1.23958032]
[1759433282284,0.52347879,1072.1,1069.4,3.12099258]
[1759433282578,0.52347879,1072.0,1069.4,3.12099258]
[1759433282782,0.52347879,1071.9,1069.5,1.23958032]
[1759433282980,0.52347879,1071.8,1069.5,1.23958032]
[1759433283181,0.52347879,1071.7,1069.5,1.23958032]
[1759433283384,0.52347879,1071.6,1069.4,3.12099258]
[1759433283585,0.52347879,1071.5,1069.4,3.12099258]
[1759433283881,0.83891724,1072.3,1069.4,3.12099258]
[1759433284084,0.52354177,1072.2,1069.4,3.12099258]
[1759433284280,1.36245901,1072.1,1069.5,1.23958032]
[1759433284485,1.36245901,1072.0,1069.5,1.23958032]
[1759433284683,0.52354177,1071.9,1069.5,1.23958032]
[1759433284882,0.52354177,1071.8,1069.4,3.12099258]
[1759433285082,0.52354177,1071.7,1069.4,3.12099258]
[1759433285287,0.52354177,1071.6,1069.4,3.12099258]
[1759433285487,0.52354177,1071.5,1069.4,1.88141226]
[1759433285787,0.52354177,1071.4,1069.4,1.88141226]
[1759433285984,0.83891724,1072.1,1069.4,3.12099258]
[1759433286187,0.52367279,1072.0,1069.4,3.12099258]